fUSD/lending_fUSD_20240725
["ID","MTS","AMOUNT","RATE_DAILY","PERIOD"]
[333102676,1721867431817,-311.5829,0.00010799,2]
[333102677,1721867431827,-385.3777645,0.000108,2]
[333102678,1721867431839,-987.81924358,0.000108,2]
[333102679,1721867431851,-2599.0946003,0.000108,2]
[333102687,1721867437565,-550.13842932,0.000108,2]
[333102688,1721867437627,-6564.1081172,0.000108,2]
[333102827,1721867439678,-1950.58610927,0.000108,2]
[333102829,1721867439689,-875.6832297,0.000108,2]
[333102835,1721867439739,-1467.29741007,0.000108,2]
[333102837,1721867439750,-295.58402518,0.000108,2]
[333102854,1721867439909,-383.57266039,0.000108,2]
[333102856,1721867439921,-2626.43105,0.000108,2]
[333102858,1721867439932,-502.14967207,0.000108,2]
[333103088,1721867442590,-419.10287483,0.000108,2]
[333103089,1721867442601,-332.28537817,0.000108,2]
[333103091,1721867442717,-341.04,0.000108,2]
[333103098,1721867442893,-508.76,0.000108,2]
[333103099,1721867442906,-772.82854254,0.000108,2]
[333103114,1721867445571,-290.05976315,0.000108,2]
[333103115,1721867445948,-1744.32203037,0.000108,2]
[333103116,1721867445960,-417.95823573,0.000108,2]
[333103117,1721867445972,-20558.61190507,0.000108,2]
[333103118,1721867445984,-333.5134452,0.000108,2]
[333103119,1721867445995,-1459.03154576,0.000108,2]
[333103120,1721867446006,-500.0,0.000108,2]
[333103121,1721867446934,-1712.25832484,0.000108,2]
[333103135,1721867638918,150.37,8.219e-05,2]
[333103136,1721867683545,10000.0,8.219e-05,2]
[333103137,1721867943582,24520.82,8.219e-05,2]
[333103138,1721868163738,150.37,8.219e-05,2]
[333103139,1721868176329,176.55,8.887e-05,2]
[333103209,1721868631808,-7646.98285621,9.409e-05,2]
[333103210,1721868631821,-2353.01714379,9.409e-05,2]
[333103211,1721868631835,-300.0,9.439e-05,2]
[333103212,1721868631847,-300.0,9.439e-05,2]
[333103213,1721868631859,-213.18,9.44e-05,2]
[333103214,1721868631871,-2139.85,9.444e-05,2]
[333103215,1721868631882,-151.97830373,9.494e-05,2]
[333103216,1721868631893,-166.66666668,9.543e-05,2]
[333103217,1721868631904,-160.63322315,9.589e-05,2]
[333103218,1721868631916,-215.42,9.698e-05,2]
[333103219,1721868631926,-156.97,9.766e-05,2]
[333103220,1721868631936,-156.97,9.769e-05,2]
[333103221,1721868631947,-156.97,9.771e-05,2]
[333103222,1721868631956,-644.62,9.771e-05,2]
[333103223,1721868631967,-156.97,9.774e-05,2]
[333103224,1721868631978,-156.97,9.777e-05,2]
[333103225,1721868631989,-156.97,9.779e-05,2]
[333103226,1721868632000,-499.99,9.779e-05,2]
[333103227,1721868632011,-156.97,9.782e-05,2]
[333103228,1721868632023,-156.97,9.784e-05,2]
[333103229,1721868632034,-156.97,9.787e-05,2]
[333103230,1721868632048,-156.97,9.789e-05,2]
[333103231,1721868632059,-156.97,9.792e-05,2]
[333103232,1721868632071,-156.97,9.795e-05,2]
[333103233,1721868632082,-157.41403917,9.795e-05,2]
[333103234,1721868632093,-156.97,9.797e-05,2]
[333103235,1721868632104,-156.97,9.8e-05,2]
[333103236,1721868632116,-150.0,9.802e-05,2]
[333103237,1721868632128,-156.97,9.802e-05,2]
[333103238,1721868632139,-156.97,9.805e-05,2]
[333103239,1721868632151,-1000.0,9.806e-05,2]
[333103240,1721868632162,-156.97,9.808e-05,2]
[333103241,1721868632172,-156.97,9.81e-05,2]
[333103242,1721868632183,-156.97,9.813e-05,2]
[333103244,1721868632194,-156.97,9.815e-05,2]
[333103246,1721868632205,-299.99,9.821e-05,2]
[333103248,1721868632217,-833.71,9.941e-05,2]
[333103250,1721868632227,-222.57269019,0.00010241,2]
[333103251,1721868632240,-610.96730981,0.00010241,2]
[333103252,1721868632252,-150.0,0.00010378,2]
[333103253,1721868632263,-150.0,0.00010378,2]
[333103254,1721868632274,-529.96,0.00010378,2]
[333103255,1721868632285,-425.54,0.00010378,2]
[333103256,1721868632297,-165.32,0.00010378,2]
[333103257,1721868632308,-150.16,0.00010378,2]
[333103258,1721868632319,-150.0,0.00010378,2]
[333103259,1721868632330,-355.84,0.00010378,2]
[333103260,1721868632339,-529.96,0.00010378,2]
[333103261,1721868632349,-150.0,0.00010378,2]
[333103262,1721868632359,-281.88896034,0.00010378,2]
[333103263,1721868632377,-73.95103966,0.00010378,2]
[333103264,1721868632387,-425.54,0.00010378,2]
[333103265,1721868632397,-165.32,0.00010378,2]
[333103266,1721868632409,-150.0,0.00010378,2]
[333103267,1721868632419,-425.54,0.00010378,2]
[333103268,1721868632431,-355.84,0.00010378,2]
[333103269,1721868632445,-529.6,0.00010378,2]
[333103270,1721868632456,-150.0,0.00010378,2]
[333103271,1721868632467,-150.0,0.00010378,2]
[333103272,1721868632479,-150.0,0.00010378,2]
[333103273,1721868632491,-165.32,0.00010378,2]
[333103274,1721868632503,-425.54,0.00010378,2]
[333103275,1721868632515,-529.84,0.00010378,2]
[333103276,1721868632526,-150.0,0.00010378,2]
[333103277,1721868632538,-165.16,0.00010378,2]
[333103278,1721868632550,-355.84,0.00010378,2]
[333103279,1721868632561,-150.0,0.00010378,2]
[333103280,1721868632571,-165.28,0.00010378,2]
[333103281,1721868632581,-425.54,0.00010378,2]
[333103282,1721868632591,-150.0,0.00010378,2]
[333103283,1721868632602,-355.84,0.00010378,2]
[333103284,1721868632612,-55.52163668,0.00010378,2]
[333103285,1721868632624,-787.21836332,0.00010378,2]
[333103286,1721868632634,-355.84,0.00010378,2]
[333103287,1721868632645,-150.0,0.00010378,2]
[333103288,1721868632655,-355.84,0.00010378,2]
[333103289,1721868632667,-150.0,0.00010378,2]
[333103290,1721868632679,-150.0,0.00010378,2]
[333103291,1721868632691,-355.84,0.00010378,2]
[333103292,1721868632701,-150.0,0.00010378,2]
[333103293,1721868632713,-355.84,0.00010378,2]
[333103294,1721868632724,-420.0,0.00010383,2]
[333103295,1721868632734,-420.0,0.00010383,2]
[333103296,1721868632744,-150.0,0.00010652,2]
[333103297,1721868632754,-220.24,0.00010712,3]
[333103298,1721868632767,-602.7287,0.00010714,2]
[333103299,1721868632778,-2500.0,0.00010714,2]
[333103300,1721868632789,-150.0,0.00010725,2]
[333103301,1721868632799,-150.0,0.00010731,2]
[333103302,1721868632810,-150.0,0.00010734,2]
[333103303,1721868632822,-150.0,0.00010735,2]
[333103304,1721868632833,-150.0,0.00010737,2]
[333103305,1721868632844,-150.0,0.00010739,2]
[333103306,1721868632855,-6718.275,0.00010743,2]
[333103307,1721868632865,-150.0,0.00010745,2]
[333103308,1721868632876,-150.0,0.00010747,2]
[333103309,1721868632886,-150.0,0.00010749,2]
[333103310,1721868632897,-150.0,0.00010753,2]
[333103311,1721868632907,-150.0,0.00010759,2]
[333103312,1721868632918,-150.0,0.00010759,2]
[333103313,1721868632928,-150.0,0.00010761,2]
[333103314,1721868632939,-150.0,0.00010765,2]
[333103315,1721868632953,-150.0,0.00010769,2]
[333103316,1721868632963,-1255.87355409,0.00010772,2]
[333103317,1721868632975,-176.00650008,0.00010772,2]
[333103318,1721868632985,-155.0,0.00010772,2]
[333103319,1721868632995,-220.964962,0.00010773,2]
[333103320,1721868633006,-150.0,0.00010775,2]
[333103321,1721868633017,-150.0,0.00010778,2]
[333103322,1721868633028,-150.0,0.00010779,2]
[333103323,1721868633040,-150.0,0.00010783,2]
[333103324,1721868633051,-150.0,0.00010784,2]
[333103325,1721868633062,-150.0,0.00010786,2]
[333103326,1721868633073,-150.0,0.00010786,2]
[333103327,1721868633084,-150.0,0.00010787,2]
[333103328,1721868633096,-2617.9838,0.00010789,2]
[333103329,1721868633107,-150.0,0.00010793,2]
[333103330,1721868633119,-46.46198462,0.00010795,2]
[333103331,1721868633133,-103.53801538,0.00010795,2]
[333103332,1721868633145,-150.0,0.00010797,2]
[333103333,1721868633156,-150.0,0.00010798,2]
[333103334,1721868633168,-78.4505294,0.00010798,2]
[333103335,1721868633223,-71.5494706,0.00010798,2]
[333103336,1721868633233,-323.9262,0.00010799,2]
[333103337,1721868633244,-133.2443294,0.00010799,2]
[333103338,1721868633257,-4382.58301081,0.00010799,2]
[333103339,1721868633270,-513.9901319,0.00010799,2]
[333103340,1721868633362,-302.92480413,0.00010799,2]
[333103341,1721868637747,-150.0,0.00010742,2]
[333103342,1721868637757,-150.0,0.00010747,2]
[333103343,1721868637766,-150.0,0.00010748,2]
[333103344,1721868637776,-150.0,0.0001076,2]
[333103345,1721868637785,-150.0,0.00010793,2]
[333103346,1721868637796,-4119.05284405,0.00010799,2]
[333103347,1721868637808,-4186.27582778,0.00010799,2]
[333103348,1721868637827,-2931.87895,0.00010799,2]
[333103349,1721868637838,-404.64145571,0.00010799,2]
[333103350,1721868637931,-601.86311363,0.00010799,2]
[333103351,1721868637942,-395.46971874,0.00010799,2]
[333103352,1721868637954,-688.35,0.00010799,2]
[333103353,1721868638051,-600.27260155,0.00010799,2]
[333103429,1721868639799,-1301.90749695,0.00010799,2]
[333103432,1721868639811,-3082.83796238,0.00010799,2]
[333103433,1721868639822,-2816.95903306,0.00010799,2]
[333103435,1721868639833,-546.4121415,0.00010799,2]
[333103439,1721868639858,-3950.40628861,0.00010799,2]
[333103468,1721868640156,-1765.5,0.00010799,2]
[333103471,1721868640172,-258.26659757,0.00010799,2]
[333103473,1721868640184,-736.10038563,0.00010799,2]
[333103475,1721868640200,-2418.7661066,0.00010799,2]
[333103477,1721868640209,-4070.7604,0.00010799,2]
[333103479,1721868640219,-177.5368,0.00010799,2]
[333103481,1721868640228,-6701.0392,0.00010799,2]
[333103483,1721868640238,-1410.4927,0.00010799,2]
[333103485,1721868640247,-171656.96545954,0.00010799,2]
[333103487,1721868640258,-2621.60252239,0.00010799,2]
[333103490,1721868640270,-6591.75887851,0.00010799,2]
[333103492,1721868640281,-1415.55102347,0.00010799,2]
[333103494,1721868640292,-11716.20553662,0.00010799,2]
[333103496,1721868640305,-3802.96135066,0.00010799,2]
[333103498,1721868640317,-1459.46820772,0.00010799,2]
[333103500,1721868640329,-2435.38767799,0.00010799,2]
[333103503,1721868640340,-1028.443,0.00010799,2]
[333103505,1721868640352,-298.57312534,0.00010799,2]
[333103768,1721868642901,-150.0,0.0001077,2]
[333103770,1721868642911,-150.0,0.00010771,2]
[333103772,1721868642920,-48.04079335,0.00010773,2]
[333103774,1721868642931,-101.95920665,0.00010773,2]
[333103776,1721868642940,-150.0,0.0001078,2]
[333103778,1721868642950,-5.12978099,0.00010781,2]
[333103782,1721868642987,-144.87021901,0.00010781,2]
[333103784,1721868642996,-8684.73787063,0.00010799,2]
[333103786,1721868643008,-39005.02704502,0.00010799,2]
[333103788,1721868643020,-4844.40405987,0.00010799,2]
[333103793,1721868643057,-150.0,0.00010724,2]
[333103794,1721868643068,-5603.72585808,0.00010799,2]
[333103797,1721868643088,-1457.52135918,0.00010799,2]
[333103914,1721868645835,-150.0,0.00010729,2]
[333103915,1721868645847,-150.0,0.00010747,2]
[333103916,1721868645858,-2056.43045917,0.00010799,2]
[333103917,1721868645982,-2910.55810647,0.00010799,2]
[333103920,1721868645994,-890.2,0.00010799,2]
[333103922,1721868646006,-2314.33356873,0.00010799,2]
[333103924,1721868646019,-895.73293621,0.00010799,2]
[333103927,1721868646029,-569.87801786,0.00010799,2]
[333103929,1721868646040,-1012.23624207,0.00010799,2]
[333103931,1721868646052,-9114.78504136,0.00010799,2]
[333103932,1721868646062,-319.31715993,0.00010799,2]
[333103933,1721868646073,-642.66848604,0.00010799,2]
[333103934,1721868646120,-345.16761605,0.00010799,2]
[333103935,1721868646132,-1357.74938079,0.00010799,2]
[333103936,1721868646153,-254.08592998,0.00010799,2]
[333103937,1721868646164,-2544.01325688,0.00010799,2]
[333103956,1721868691654,150.0,0.00013508,120]
[333103960,1721868719006,155.01,8.219e-05,2]
[333103962,1721869354715,156.65,8.219e-05,2]
[333104237,1721869834148,-156.97958122,9.683e-05,2]
[333104239,1721869834158,-178.9498187,9.69e-05,2]
[333104241,1721869834171,-40.03102834,9.69e-05,2]
[333104243,1721869834182,-250.0,9.762e-05,2]
[333104244,1721869834192,-58.8590737,9.781e-05,2]
[333104245,1721869834204,-941.1409263,9.781e-05,2]
[333104246,1721869834214,-71.5493887,9.786e-05,2]
[333104247,1721869834243,-109.94196454,9.786e-05,2]
[333104248,1721869834253,-708.88248063,0.0001,2]
[333104249,1721869834266,-757.13168339,0.0001,2]
[333104250,1721869834311,-3254.06863598,0.0001,2]
[333104251,1721869834321,-273.4074,0.00010249,2]
[333104252,1721869834331,-257.90199888,0.00010249,2]
[333104253,1721869834341,-300.0,0.00010599,2]
[333104254,1721869834350,-150.0,0.000106,2]
[333104255,1721869834360,-355.75,0.000106,2]
[333104256,1721869834370,-1915.0,0.000106,2]
[333104257,1721869834379,-150.0,0.00010698,2]
[333104258,1721869834389,-390.44196514,0.00010699,2]
[333104259,1721869834400,-3137.05,0.00010699,2]
[333104260,1721869834411,-2083.85,0.00010699,2]
[333104261,1721869834423,-658.19169336,0.00010699,2]
[333104262,1721869839804,-1995.18,9.962e-05,2]
[333104263,1721869839818,-250.10923137,9.962e-05,2]
[333104264,1721869839828,-528.222907,0.00010198,2]
[333104266,1721869839837,-488.26571769,0.00010699,2]
[333104268,1721869839850,-3427.80711935,0.00010699,2]
[333104271,1721869839862,-279.69657276,0.00010699,2]
[333104280,1721869840008,-1156.6884317,0.00010699,2]
[333104282,1721869840019,-462.4290683,0.00010699,2]
[333104286,1721869840035,-322.27,0.00010699,2]
[333104296,1721869840141,-10813.5467,0.00010699,2]
[333104297,1721869840154,-6457.2,0.00010699,2]
[333104298,1721869840169,-286.8482083,0.00010699,2]
[333104299,1721869840193,-3242.03880001,0.00010699,2]
[333104300,1721869840205,-2956.92886364,0.00010699,2]
[333104301,1721869840216,-18792.37,0.00010699,2]
[333104302,1721869840227,-19365.68370378,0.00010699,2]
[333104303,1721869840239,-328.56,0.00010699,2]
[333104304,1721869840250,-70975.07215597,0.00010699,2]
[333104305,1721869840260,-5668.1376,0.00010699,2]
[333104306,1721869840270,-165.28,0.000107,2]
[333104307,1721869840283,-711.59,0.000107,2]
[333104308,1721869840293,-150.0,0.000107,2]
[333104309,1721869840304,-150.0,0.000107,2]
[333104310,1721869840318,-742.32,0.000107,2]
[333104311,1721869840328,-150.0,0.000107,2]
[333104312,1721869840338,-499.99,0.00010722,2]
[333104313,1721869840348,-150.99,0.00010722,2]
[333104314,1721869840358,-150.0,0.00010725,2]
[333104315,1721869840368,-150.0,0.00010731,2]
[333104316,1721869840379,-150.0,0.00010733,2]
[333104317,1721869840389,-150.0,0.00010736,2]
[333104318,1721869840400,-150.0,0.00010739,2]
[333104319,1721869840410,-150.0,0.00010741,2]
[333104320,1721869840420,-150.0,0.00010741,2]
[333104321,1721869840430,-150.0,0.00010743,2]
[333104323,1721869840440,-150.0,0.00010743,2]
[333104325,1721869840450,-150.0,0.00010746,2]
[333104327,1721869840460,-150.0,0.00010753,2]
[333104329,1721869840470,-150.0,0.00010755,2]
[333104331,1721869840480,-150.0,0.00010759,2]
[333104333,1721869840490,-150.0,0.0001076,2]
[333104335,1721869840500,-150.0,0.00010762,2]
[333104337,1721869840510,-150.0,0.0001077,2]
[333104339,1721869840520,-150.0,0.0001077,2]
[333104340,1721869840531,-150.0,0.00010772,2]
[333104342,1721869840541,-150.0,0.00010772,2]
[333104344,1721869840551,-150.0,0.00010773,2]
[333104346,1721869840566,-150.0,0.00010774,2]
[333104348,1721869840577,-150.0,0.00010779,2]
[333104350,1721869840587,-150.0,0.0001078,2]
[333104352,1721869840597,-150.0,0.00010781,2]
[333104354,1721869840607,-150.0,0.00010782,2]
[333104357,1721869840618,-150.0,0.00010783,2]
[333104360,1721869840628,-150.0,0.00010785,2]
[333104363,1721869840638,-150.0,0.00010793,2]
[333104364,1721869840647,-45894.98899565,0.00010799,2]
[333104367,1721869840660,-198887.06782671,0.00010799,2]
[333104369,1721869840676,-12936.78558967,0.00010799,2]
[333104373,1721869840698,-480.599973,0.00010799,2]
[333104375,1721869840709,-1199.62674145,0.00010799,2]
[333104378,1721869840721,-1299.68,0.00010799,2]
[333104380,1721869840733,-415.86603546,0.00010799,2]
[333104382,1721869840746,-987.79935996,0.00010799,2]
[333104384,1721869840760,-903.31802668,0.00010799,2]
[333104386,1721869840772,-1001.40247999,0.00010799,2]
[333104388,1721869840784,-302.09287055,0.00010799,2]
[333104390,1721869840799,-814.74037197,0.00010799,2]
[333104392,1721869840815,-32423.0,0.00010799,2]
[333104394,1721869840828,-313.5436304,0.00010799,2]
[333104397,1721869840840,-8466.91297184,0.00010799,2]
[333104399,1721869840853,-129738.0,0.00010799,2]
[333104401,1721869840865,-1118.414523,0.00010799,2]
[333104404,1721869840883,-9734.725,0.00010799,2]
[333104408,1721869840919,-410.19142791,0.00010799,2]
[333104411,1721869840944,-6520.26552374,0.00010799,2]
[333104439,1721869841235,-1625.64412788,0.00010799,2]
[333104441,1721869841247,-1618.10000002,0.00010799,2]
[333104444,1721869841264,-646.3457,0.00010799,2]
[333104446,1721869841277,-3255.0,0.00010799,2]
[333104447,1721869841289,-2301.91562026,0.00010799,2]
[333104448,1721869841301,-2000.0,0.00010799,2]
[333104449,1721869841322,-646.87,0.00010799,2]
[333104450,1721869841334,-294.97049249,0.00010799,2]
[333104647,1721869843234,-1800.31347189,0.00010249,2]
[333104648,1721869843244,-150.0,0.0001073,2]
[333104650,1721869843254,-150.0,0.00010731,2]
[333104652,1721869843264,-150.0,0.00010731,2]
[333104654,1721869843274,-150.0,0.00010734,2]
[333104656,1721869843284,-150.0,0.00010739,2]
[333104658,1721869843293,-150.0,0.0001076,2]
[333104660,1721869843303,-150.0,0.0001077,2]
[333104662,1721869843315,-1500.0,0.00010776,2]
[333104664,1721869843324,-150.0,0.00010798,2]
[333104666,1721869843335,-60986.63119872,0.00010799,2]
[333104669,1721869843345,-1551.02542483,0.00010799,2]
[333104670,1721869843355,-3000.0,0.00010799,2]
[333104672,1721869843364,-1002.13009784,0.000108,2]
[333104675,1721869843374,-502.14967207,0.000108,2]
[333104677,1721869843384,-150.0,0.00010801,2]
[333104679,1721869843394,-150.0,0.00010801,2]
[333104681,1721869843404,-150.0,0.00010805,2]
[333104683,1721869843414,-150.0,0.00010805,2]
[333104685,1721869843424,-150.0,0.00010808,2]
[333104687,1721869843433,-150.0,0.00010815,2]
[333104689,1721869843443,-150.0,0.00010817,2]
[333104691,1721869843452,-150.0,0.00010824,2]
[333104693,1721869843462,-150.0,0.00010824,2]
[333104695,1721869843472,-150.0,0.00010826,2]
[333104697,1721869843482,-150.0,0.00010828,2]
[333104699,1721869843491,-150.0,0.00010829,2]
[333104701,1721869843501,-150.0,0.00010829,2]
[333104702,1721869843511,-150.0,0.00010832,2]
[333104704,1721869843521,-150.0,0.00010833,2]
[333104706,1721869843531,-300.0,0.00010833,2]
[333104708,1721869843541,-150.0,0.00010836,2]
[333104710,1721869843550,-150.0,0.00010837,2]
[333104712,1721869843562,-150.0,0.00010839,2]
[333104714,1721869843573,-150.0,0.00010839,2]
[333104716,1721869843582,-150.0,0.00010841,2]
[333104718,1721869843592,-150.0,0.00010842,2]
[333104720,1721869843601,-150.0,0.00010847,2]
[333104722,1721869843611,-150.0,0.00010849,2]
[333104724,1721869843622,-150.0,0.0001085,2]
[333104727,1721869843632,-150.0,0.00010851,2]
[333104729,1721869843642,-150.0,0.00010854,2]
[333104731,1721869843652,-150.0,0.00010856,2]
[333104733,1721869843662,-150.0,0.00010857,2]
[333104735,1721869843672,-187.11915247,0.00010858,2]
[333104737,1721869843681,-150.0,0.00010859,2]
[333104739,1721869843691,-150.0,0.00010859,2]
[333104741,1721869843701,-150.0,0.00010865,2]
[333104743,1721869843711,-150.0,0.00010865,2]
[333104752,1721869843782,-150.0,0.00010867,2]
[333104755,1721869843796,-150.0,0.0001087,2]
[333104758,1721869843805,-150.0,0.00010874,2]
[333104761,1721869843821,-150.0,0.00010877,2]
[333104764,1721869843831,-150.0,0.00010879,2]
[333104767,1721869843841,-150.0,0.0001088,2]
[333104770,1721869843851,-150.0,0.00010882,2]
[333104772,1721869843860,-150.0,0.00010883,2]
[333104774,1721869843871,-150.0,0.00010885,2]
[333104776,1721869843881,-150.0,0.00010887,2]
[333104778,1721869843891,-150.0,0.00010892,2]
[333104780,1721869843900,-14713.49285837,0.000109,2]
[333104784,1721869843928,-330.89991071,0.000109,2]
[333104787,1721869843951,-226.21611539,0.00010817,2]
[333104789,1721869843961,-4898.85510726,0.000109,2]
[333104791,1721869843971,-150.0,0.000109,2]
[333104793,1721869843981,-225.0,0.000109,2]
[333104795,1721869843991,-357.0,0.000109,2]
[333104796,1721869844000,-161.59871491,0.000109,2]
[333104798,1721869844010,-161.59871485,0.000109,2]
[333104799,1721869844021,-161.59871485,0.000109,2]
[333104801,1721869844031,-161.59871485,0.000109,2]
[333104803,1721869844041,-161.59871485,0.000109,2]
[333104804,1721869844051,-161.59871485,0.000109,2]
[333104806,1721869844065,-161.59871485,0.000109,2]
[333104808,1721869844075,-161.59871485,0.000109,2]
[333104809,1721869844086,-1000.0,0.000109,2]
[333104811,1721869844096,-150.0,0.00010901,2]
[333104813,1721869844106,-150.0,0.00010904,2]
[333104815,1721869844118,-150.0,0.00010904,2]
[333104817,1721869844128,-150.0,0.00010905,2]
[333104819,1721869844138,-150.0,0.00010906,2]
[333104821,1721869844149,-150.0,0.00010907,2]
[333104823,1721869844159,-150.0,0.00010909,2]
[333104825,1721869844169,-150.0,0.0001091,2]
[333104827,1721869844180,-500.0,0.00010911,2]
[333104830,1721869844190,-150.0,0.00010911,2]
[333104832,1721869844201,-500.0,0.00010912,2]
[333104834,1721869844212,-150.0,0.00010912,2]
[333104836,1721869844223,-150.0,0.00010913,2]
[333104838,1721869844234,-150.0,0.00010914,2]
[333104840,1721869844245,-150.0,0.00010914,2]
[333104842,1721869844256,-150.0,0.00010923,2]
[333104844,1721869844267,-150.0,0.00010925,2]
[333104846,1721869844277,-150.0,0.00010928,2]
[333104848,1721869844287,-150.0,0.00010928,2]
[333104850,1721869844298,-150.0,0.00010929,2]
[333104852,1721869844308,-150.0,0.00010929,2]
[333104854,1721869844324,-150.0,0.0001093,2]
[333104856,1721869844335,-150.0,0.00010932,2]
[333104858,1721869844345,-150.0,0.00010933,2]
[333104860,1721869844356,-150.0,0.00010936,2]
[333104862,1721869844367,-150.0,0.00010938,2]
[333104864,1721869844377,-150.0,0.00010938,2]
[333104866,1721869844387,-150.0,0.00010939,2]
[333104868,1721869844398,-150.0,0.0001094,2]
[333104870,1721869844408,-150.0,0.0001094,2]
[333104871,1721869844419,-150.0,0.00010944,2]
[333104873,1721869844429,-150.0,0.00010945,2]
[333104875,1721869844439,-150.0,0.00010945,2]
[333104877,1721869844449,-150.0,0.00010945,2]
[333104879,1721869844458,-1000.0,0.00010945,2]
[333104881,1721869844468,-1000.0,0.00010945,2]
[333104883,1721869844478,-1000.0,0.00010945,2]
[333104885,1721869844488,-512.0844,0.00010945,2]
[333104887,1721869844498,-150.0,0.00010948,2]
[333104889,1721869844508,-150.0,0.00010949,2]
[333104891,1721869844518,-1500.0,0.0001095,2]
[333104893,1721869844527,-150.0,0.00010954,2]
[333104895,1721869844537,-150.0,0.00010955,2]
[333104897,1721869844546,-526.0,0.00010958,2]
[333104899,1721869844556,-500.0,0.00010958,2]
[333104901,1721869844571,-500.0,0.00010958,2]
[333104903,1721869844582,-500.0,0.00010958,2]
[333104905,1721869844592,-500.0,0.00010958,2]
[333104907,1721869844602,-500.0,0.00010958,2]
[333104908,1721869844614,-1089.11,0.00010958,2]
[333104910,1721869844625,-500.0,0.00010958,2]
[333104911,1721869844635,-500.0,0.00010958,2]
[333104912,1721869844645,-500.0,0.00010958,2]
[333104913,1721869844655,-500.0,0.00010958,2]
[333104914,1721869844664,-500.0,0.00010958,2]
[333104915,1721869844674,-500.0,0.00010958,2]
[333104916,1721869844684,-500.0,0.00010958,2]
[333104917,1721869844693,-500.0,0.00010958,2]
[333104918,1721869844703,-500.0,0.00010958,2]
[333104919,1721869844713,-502.36364483,0.00010958,2]
[333104920,1721869844723,-500.0,0.00010958,2]
[333104921,1721869844732,-500.0,0.00010958,2]
[333104922,1721869844741,-500.0,0.00010958,2]
[333104923,1721869844751,-506.34170282,0.00010958,2]
[333104924,1721869844760,-500.0,0.00010958,2]
[333104925,1721869844770,-319.82219617,0.00010958,2]
[333104926,1721869844779,-502.2269073,0.00010958,2]
[333104927,1721869844790,-536.5878075,0.00010958,2]
[333104928,1721869844800,-502.17192887,0.00010958,2]
[333104929,1721869844811,-502.26182654,0.00010958,2]
[333104930,1721869844828,-500.0,0.00010958,2]
[333104931,1721869844838,-384.92,0.00010958,2]
[333104932,1721869844850,-500.0,0.00010958,2]
[333104933,1721869844859,-500.0,0.00010958,2]
[333104934,1721869844871,-502.12168581,0.00010958,2]
[333104935,1721869844881,-370.73,0.00010958,2]
[333104936,1721869844890,-500.0,0.00010958,2]
[333104937,1721869844899,-502.319855,0.00010958,2]
[333104938,1721869844908,-500.0,0.00010958,2]
[333104939,1721869844918,-500.0,0.00010958,2]
[333104940,1721869844928,-500.0,0.00010958,2]
[333104941,1721869844938,-500.0,0.00010958,2]
[333104942,1721869844947,-500.0,0.00010958,2]
[333104943,1721869844956,-500.0,0.00010958,2]
[333104944,1721869844966,-500.0,0.00010958,2]
[333104945,1721869844975,-500.0,0.00010958,2]
[333104946,1721869844984,-503.36007481,0.00010958,2]
[333104947,1721869844993,-502.67103161,0.00010958,2]
[333104949,1721869845003,-500.0,0.00010958,2]
[333104951,1721869845012,-500.0,0.00010958,2]
[333104953,1721869845022,-500.0,0.00010958,2]
[333104955,1721869845031,-500.0,0.00010958,2]